{"text_format":"1","workbook":"xlsx","n_sheets":5,"sheets":["TENDER PACK 3 PS (Sheet A)","DC3A","TENDER PACK 3 PS (Sheet B)","DC3B","DC3C"],"not_rendered":{"charts":0,"images":4,"macros":1,"external_links":0,"defined_names":2,"comments":3,"pivot_tables":0},"unopened":[],"bounds":{"document_bytes":16777216,"sheet_cells":100000,"rows_first":2000,"rows_last":500,"rows_between":2000,"halvings":0,"cell_chars":16384,"cell_head_chars":4096},"cells_cut":0,"cells_raw":0,"read":"whole","date_system":"1900"}

{"sheet":"TENDER PACK 3 PS (Sheet A)","index":0,"n_rows":229,"n_cols":17,"rows_kept":229,"cut":false,"hidden":false,"merged":[[91,2,94,2],[216,2,218,2],[219,2,221,2],[222,2,224,2],[225,2,227,2],[228,3,233,6],[228,7,233,14],[231,16,233,17],[222,3,224,6],[222,7,224,12],[222,13,224,14],[225,3,227,6],[225,7,227,12],[225,13,227,14],[216,3,218,6],[216,7,218,12],[216,13,218,14],[219,3,221,6],[219,7,221,12],[219,13,221,14],[228,2,233,2],[211,3,212,14],[214,3,214,14],[202,2,203,2],[202,3,203,6],[202,7,203,12],[202,13,203,14],[204,2,205,2],[204,3,205,6],[204,7,205,12],[204,13,205,14],[206,2,207,2],[206,3,207,6],[206,7,207,12],[206,13,207,14],[189,7,190,14],[191,2,192,2],[191,3,192,6],[191,7,192,14],[193,2,194,2],[193,3,194,6],[193,7,194,12],[193,13,194,14],[195,3,196,6],[195,7,196,12],[195,13,196,14],[195,2,196,2],[189,2,190,2],[185,3,188,6],[185,7,188,12],[185,13,188,14],[176,16,178,17],[179,2,180,2],[179,3,180,6],[179,7,180,12],[179,13,180,14],[181,2,182,2],[181,3,182,6],[181,7,182,12],[181,13,182,14],[176,2,178,2],[185,2,188,2],[176,13,178,14],[176,3,178,6],[176,7,178,12],[126,3,126,14],[98,3,98,6],[98,7,98,14],[99,3,100,6],[99,7,100,14],[101,3,101,6],[101,7,101,14],[183,7,184,12],[183,13,184,14],[143,3,145,6],[143,7,145,14],[140,3,140,6],[140,7,140,14],[139,3,139,6],[139,7,139,14],[102,3,102,12],[146,2,148,2],[82,3,83,14],[149,3,151,6],[183,2,184,2],[183,3,184,6],[189,3,190,6],[2,3,6,14],[3,16,5,17],[13,3,14,14],[16,3,22,14],[17,16,20,17],[43,3,47,14],[43,16,45,17],[49,3,61,14],[53,16,55,17],[85,3,85,14],[23,16,24,17],[24,3,24,14],[25,3,25,14],[27,3,38,14],[27,16,29,17],[42,3,42,14],[95,3,95,6],[95,7,95,14],[87,2,88,2],[89,2,90,2],[99,2,100,2],[8,3,11,9],[8,10,11,10],[8,11,11,14],[135,2,136,2],[128,2,129,2],[130,2,134,2],[96,3,96,6],[96,7,96,14],[97,3,97,6],[97,7,97,14],[87,3,88,6],[87,7,88,14],[89,3,90,6],[89,7,90,14],[91,3,94,6],[91,7,94,14],[103,3,103,6],[103,7,103,14],[105,3,105,14],[107,3,108,14],[123,3,124,14],[198,2,199,2],[198,3,198,14],[200,2,201,2],[200,3,201,6],[200,7,201,12],[200,13,201,14],[128,3,129,6],[128,7,129,14],[130,3,134,6],[130,7,134,14],[146,7,148,14],[137,3,138,6],[137,7,138,14],[141,3,142,6],[135,7,136,14],[135,3,136,6],[141,7,142,14],[149,7,151,14],[171,3,172,14],[174,3,174,14],[149,2,151,2],[146,3,148,6],[137,2,138,2],[141,2,142,2]]}
[]
[]
[null,null,null,"TENDER PACK 3\nOPERATING MARGINS\n2026/27 GAS DELIVERY TENDER (DEMAND REDUCTION)\nSHEET A - MANDATORY 12 MONTH BID"]
[]
[]
[]
[]
[]
[null,null,null,"This tender pack is designed for:\n• Facility Providers of Demand Reduction Services\n",null,null,null,null,null,null,null,"Submission of this sheet is mandatory for Power Station Tenderers"]
[]
[]
[]
[]
[null,null,null,"Issued November 2025"]
[]
[]
[null,null,null,"Produced by National Grid Transmission  \nNational Grid Transmission plc\nWarwick Technology Park\nGallows Hill\nWarwick\nCV34 6DA"]
[]
[]
[]
[]
[]
[]
[]
[null,null,null,"Website:"]
[null,null,null,"https://www.nationalgas.com/our-businesses/operating-margins"]
[]
[null,null,null,"PLEASE NOTE:\nThis document should be read in conjunction with the template Operating Margins agreements (found on the Operating Margins Homepage) and the document entitled \"Tender Guidance Document 2026/27\".\n\nSpecific guidance on how to complete these tender sheets is provided in Sections 7 & 8 of the Operating Margins Tender Guidance Document with specific cross-references to these tender sheets via superscript numbers adjacent to the relevant fields of information. Please also refer to Section 6 \"Requirements of the Tender Process\" in order to understand what must accompany the tender sheets as part of submission in order that assessment can proceed on any tenders received.\n\nTerms and phrases used in this document have the meanings set out or referred to in the template Operating Margins agreements and/or the Operating Margins Tender Guidance Document."]
[]
[]
[]
[]
[]
[]
[]
[]
[]
[]
[]
[]
[]
[]
[null,null,null,"IMPORTANT INFORMATION - PLEASE READ:"]
[null,null,null,"• All parts of 'Sheet A' must be completed by all Power Station tenderers and submitted to be eligible for assessment.\n• A Power Station tenderer may submit an additional proposal for a 12 month OM service in the form of 'Sheet B', with a different Maximum Delivery Rate. This is optional. \n\n**Volumes in Sheets A and B  will be treated as mutually exclusive - i.e. National Gas will only consider accepting ONE of Sheet A or Sheet B.**"]
[]
[]
[]
[]
[]
[null,null,null,"Completed Tenders should be submitted by 13:00 hours (GMT) on Wednesday 7th January 2026 via Ariba.\n\nThe completed Tender Pack should be uploaded with a filename which includes the company name and site.\nAfter uploading the Tender Pack document, terms and conditions must be accepted before submitting.\nSubmissions can be revised until the deadline."]
[]
[]
[]
[]
[]
[]
[]
[]
[]
[]
[]
[]
[]
[]
[]
[]
[]
[]
[]
[]
[]
[]
[]
[]
[]
[]
[]
[]
[]
[]
[]
[]
[null,null,null,"2026/27 OM GAS DELIVERY TENDER (DEMAND REDUCTION)"]
[]
[]
[null,null,null,"Part 1: Tenderer Details"]
[]
[null,null,1,"Tenderer's Company Name\n(including company number)"]
[]
[null,null,2,"Company Representative, Job Title"]
[]
[null,null,3,"Company Representative Address\n(full address including postcode)"]
[]
[]
[]
[null,null,4,"Telephone Number"]
[]
[null,null,5,"Email Address"]
[null,null,6,"Legal Agent Name"]
[null,null,7,"Legal Agent Address"]
[]
[null,null,8,"Shipper Short Code"]
[null,null,9,"Please confirm that your organisation uses an accredited and industry-recognised digital security management system that manages cyber and information security risks across the full asset lifecycle, including design, architecture, development, testing, commissioning, and post-installation support.\n \nExamples of acceptable standards include (but are not limited to) the following:\n \n•\tISO/IEC 27001 certification\n•\tCyber Essentials / Cyber Essentials Plus (UK government-backed)\n•\tIEC 62443 (for industrial control systems)\n•\tAlignment with the NIST Cybersecurity Framework\n \nNotes:\nIf successful and following contract award notification, OM Service providers will be required to complete a security questionnaire, in order for National Gas to ensure audit compliance.  \n \nIf you fail to provide a response to this question, NGT reserves the right to discount you from the tender process.",null,null,null,null,null,null,null,null,null,"Click checkbox to confirm agreement and adherence ",false]
[null,null,10,"Achilles Registration Number"]
[]
[null,null,null,"Part 2"]
[]
[null,null,null,"[See OM Tenderers Contract Response Form if such amendments are proposed]\nIf no amendments are proposed please go to Part 3"]
[]
[]
[]
[]
[]
[]
[]
[]
[]
[]
[]
[]
[]
[]
[]
[null,null,null,"2026/27 OM GAS DELIVERY TENDER (DEMAND REDUCTION)"]
[]
[]
[null,null,null,"Part 3: Facility Details"]
[]
[null,null,11,"Tenderer's Company Name\n(Including registered office address and company number)"]
[]
[null,null,12,"Facility Location\n(full address including postcode)\n"]
[]
[]
[]
[]
[null,null,13,"Facility Stable Export Limit (SEL)"]
[]
[null,null,14,"Facility Maximum Export Limit (MEL)"]
[]
[null,null,15,"Gas Demand (kWh/hour) at SEL"]
[null,null,16,"Gas Demand (kWh/hour) at MEL"]
[null,null,17,"BM Unit IDs"]
[]
[null,null,null,"Duration of Service",null,null,null,"12 Months (01/05/2026 - 30/04/2027)"]
[null,null,18]
[]
[null,null,19,"Service Provider contact details for operational notices \nEmployee Position / role, Address, Telephone numbers and email details.",null,null,null,null,null,null,null,null,null,null,null,null,1]
[]
[]
[]
[]
[]
[]
[]
[]
[]
[]
[]
[]
[]
[]
[]
[]
[]
[]
[]
[]
[]
[]
[]
[]
[null,null,null,"2026/27 OM GAS DELIVERY TENDER (DEMAND REDUCTION)"]
[]
[]
[null,null,null,"Part 4: Deliverability & Availability"]
[]
[null,null,20,"Maximum Delivery Rate (Tendered)\n(requirement must be greater or equal to 500,000 kWh/hour)",null,null,null,null,null,null,null,null,null,"kWh/hour"]
[]
[]
[]
[]
[null,null,21,"Minimum Delivery Rate\n(optional) (if left blank delivery deemed at 0)",null,null,null,null,null,null,null,null,null,"kWh/hour"]
[]
[null,null,22,"Response Time",null,null,null,null,null,null,null,null,null,"Minutes"]
[]
[null,null,23,"Planned Maintenance Periods",null,null,null,null,null,null,null,null,null,"Dates"]
[]
[]
[]
[null,null,24,"Website for Service Availability / Unavailability"]
[]
[]
[]
[null,null,25,"Maximum Delivery Duration",null,null,null,null,null,null,null,null,null,"hours",null,null,1]
[]
[null,null,26,"Minimum Delivery Duration\n(Optional) (if left blank delivery deemed at 0)",null,null,null,null,null,null,null,null,null,"hours"]
[]
[]
[]
[]
[]
[]
[]
[]
[]
[]
[]
[]
[]
[]
[]
[null,null,null,"2026/27 OM GAS DELIVERY TENDER (DEMAND REDUCTION)"]
[]
[]
[null,null,null,"Part 5: Charges"]
[]
[null,null,27,"Annual Service Fee",null,null,null,null,null,null,null,null,null,"£"]
[]
[]
[null,null,28,"Indexed Delivery Charge\n",null,null,null,"Indexed Delivery Charge 2",null,null,null,null,null,"See Guidance Document"]
[]
[]
[null,null,29,"Efficiency Loss Factor ('X'%)",null,null,null,null,null,null,null,null,null,"See Guidance Document"]
[]
[]
[null,null,30,"Indexed Delivery Charge 3 required? (YES/NO)\n",null,null,null,null,null,null,null,null,null,"See Guidance Document"]
[]
[]
[null,null,31,"Additional Nomination Restrictions"]

{"sheet":"DC3A","index":1,"n_rows":4,"n_cols":41,"rows_kept":4,"cut":false,"hidden":true,"merged":[[0,2,1,9]]}
[null,null,"Data Collection Tab for Contracts Team"]
[]
["Tender Pack","Tender Ref","Tranche Ref","Main Ref",{"$f":"'TENDER PACK 3 PS (Sheet A)'!$D$88","v":"Tenderer's Company Name\n(including company number)"},{"$f":"'TENDER PACK 3 PS (Sheet A)'!$D$90","v":"Company Representative, Job Title"},{"$f":"'TENDER PACK 3 PS (Sheet A)'!$D$92","v":"Company Representative Address\n(full address including postcode)"},{"$f":"'TENDER PACK 3 PS (Sheet A)'!$D$96","v":"Telephone Number"},{"$f":"'TENDER PACK 3 PS (Sheet A)'!$D$97","v":0},{"$f":"'TENDER PACK 3 PS (Sheet A)'!$D$98","v":"Email Address"},{"$f":"'TENDER PACK 3 PS (Sheet A)'!$D$99","v":"Legal Agent Name"},{"$f":"'TENDER PACK 3 PS (Sheet A)'!$D$100","v":"Legal Agent Address"},{"$f":"'TENDER PACK 3 PS (Sheet A)'!$D$102","v":"Shipper Short Code"},{"$f":"'TENDER PACK 3 PS (Sheet A)'!$D$104","v":"Achilles Registration Number"},"Winter Only?",{"$f":"'TENDER PACK 3 PS (Sheet A)'!$D$129","v":"Tenderer's Company Name\n(Including registered office address and company number)"},{"$f":"'TENDER PACK 3 PS (Sheet A)'!$D$131","v":"Facility Location\n(full address including postcode)\n"},{"$f":"'TENDER PACK 3 PS (Sheet A)'!$D$136","v":"Facility Stable Export Limit (SEL)"},{"$f":"'TENDER PACK 3 PS (Sheet A)'!$D$138","v":"Facility Maximum Export Limit (MEL)"},{"$f":"'TENDER PACK 3 PS (Sheet A)'!$D$142","v":"BM Unit IDs"},{"$f":"'TENDER PACK 3 PS (Sheet A)'!$D$147","v":"Service Provider contact details for operational notices \nEmployee Position / role, Address, Telephone numbers and email details."},{"$f":"'TENDER PACK 3 PS (Sheet A)'!$D$150","v":0},{"$f":"'TENDER PACK 3 PS (Sheet A)'!$D$177","v":"Maximum Delivery Rate (Tendered)\n(requirement must be greater or equal to 500,000 kWh/hour)"},{"$f":"'TENDER PACK 3 PS (Sheet A)'!$D$180","v":0},{"$f":"'TENDER PACK 3 PS (Sheet A)'!$D$182","v":"Minimum Delivery Rate\n(optional) (if left blank delivery deemed at 0)"},{"$f":"'TENDER PACK 3 PS (Sheet A)'!$D$184","v":"Response Time"},{"$f":"'TENDER PACK 3 PS (Sheet A)'!$D$186","v":"Planned Maintenance Periods"},{"$f":"'TENDER PACK 3 PS (Sheet A)'!$D$190","v":"Website for Service Availability / Unavailability"},{"$f":"'TENDER PACK 3 PS (Sheet A)'!$D$192","v":0},{"$f":"'TENDER PACK 3 PS (Sheet A)'!$D$194","v":"Maximum Delivery Duration"},{"$f":"'TENDER PACK 3 PS (Sheet A)'!$D$196","v":"Minimum Delivery Duration\n(Optional) (if left blank delivery deemed at 0)"},{"$f":"'TENDER PACK 3 PS (Sheet A)'!$D$201","v":0},{"$f":"'TENDER PACK 3 PS (Sheet A)'!$D$203","v":0},{"$f":"'TENDER PACK 3 PS (Sheet A)'!$D$205","v":0},{"$f":"'TENDER PACK 3 PS (Sheet A)'!$D$207","v":0},{"$f":"'TENDER PACK 3 PS (Sheet A)'!$D$217","v":"Annual Service Fee"},{"$f":"'TENDER PACK 3 PS (Sheet A)'!$D$220","v":"Indexed Delivery Charge\n"},{"$f":"'TENDER PACK 3 PS (Sheet A)'!$D$223","v":"Efficiency Loss Factor ('X'%)"},{"$f":"'TENDER PACK 3 PS (Sheet A)'!$D$226","v":"Indexed Delivery Charge 3 required? (YES/NO)\n"},{"$f":"'TENDER PACK 3 PS (Sheet A)'!$D$229","v":"Additional Nomination Restrictions"},{"$f":"'TENDER PACK 3 PS (Sheet A)'!#REF!","v":{"$error":"#REF!"}}]
[null,null,null,{"$f":"A4&\".\"&B4&\".\"&C4","v":".."},{"$f":"'TENDER PACK 3 PS (Sheet A)'!$H$88","v":0},{"$f":"'TENDER PACK 3 PS (Sheet A)'!$H$90","v":0},{"$f":"'TENDER PACK 3 PS (Sheet A)'!$H$92","v":0},{"$f":"'TENDER PACK 3 PS (Sheet A)'!$H$96","v":0},{"$f":"'TENDER PACK 3 PS (Sheet A)'!$H$97","v":0},{"$f":"'TENDER PACK 3 PS (Sheet A)'!$H$98","v":0},{"$f":"'TENDER PACK 3 PS (Sheet A)'!$H$99","v":0},{"$f":"'TENDER PACK 3 PS (Sheet A)'!$H$100","v":0},{"$f":"'TENDER PACK 3 PS (Sheet A)'!$H$102","v":0},{"$f":"'TENDER PACK 3 PS (Sheet A)'!$H$104","v":0},"No",{"$f":"'TENDER PACK 3 PS (Sheet A)'!$H$129","v":0},{"$f":"'TENDER PACK 3 PS (Sheet A)'!$H$131","v":0},{"$f":"'TENDER PACK 3 PS (Sheet A)'!$H$136","v":0},{"$f":"'TENDER PACK 3 PS (Sheet A)'!$H$138","v":0},{"$f":"'TENDER PACK 3 PS (Sheet A)'!$H$142","v":0},{"$f":"'TENDER PACK 3 PS (Sheet A)'!$H$147","v":0},{"$f":"'TENDER PACK 3 PS (Sheet A)'!$H$150","v":0},{"$f":"'TENDER PACK 3 PS (Sheet A)'!$H$177","v":0},{"$f":"'TENDER PACK 3 PS (Sheet A)'!$H$180","v":0},{"$f":"'TENDER PACK 3 PS (Sheet A)'!$H$182","v":0},{"$f":"'TENDER PACK 3 PS (Sheet A)'!$H$184","v":0},{"$f":"'TENDER PACK 3 PS (Sheet A)'!$H$186","v":"00:00:00"},{"$f":"'TENDER PACK 3 PS (Sheet A)'!$H$190","v":0},{"$f":"'TENDER PACK 3 PS (Sheet A)'!$H$192","v":0},{"$f":"IF('TENDER PACK 3 PS (Sheet A)'!Q194=1,\"12\",IF('TENDER PACK 3 PS (Sheet A)'!Q194=2,\"24\",\"UNCHECKED\"))","v":"12"},{"$f":"'TENDER PACK 3 PS (Sheet A)'!$H$196","v":0},{"$f":"'TENDER PACK 3 PS (Sheet A)'!$H$201","v":0},{"$f":"'TENDER PACK 3 PS (Sheet A)'!$H$203","v":0},{"$f":"'TENDER PACK 3 PS (Sheet A)'!$H$205","v":0},{"$f":"'TENDER PACK 3 PS (Sheet A)'!$H$207","v":0},{"$f":"'TENDER PACK 3 PS (Sheet A)'!$H$217","v":0},{"$f":"'TENDER PACK 3 PS (Sheet A)'!$H$220","v":"Indexed Delivery Charge 2"},{"$f":"'TENDER PACK 3 PS (Sheet A)'!$H$223","v":0},{"$f":"'TENDER PACK 3 PS (Sheet A)'!$H$226","v":0},{"$f":"'TENDER PACK 3 PS (Sheet A)'!$H$229","v":0},{"$f":"IF('TENDER PACK 3 PS (Sheet A)'!#REF!=\"\",\"N\",\"Y\")","v":{"$error":"#REF!"}}]

{"sheet":"TENDER PACK 3 PS (Sheet B)","index":2,"n_rows":229,"n_cols":17,"rows_kept":229,"cut":false,"hidden":false,"merged":[[2,3,6,14],[3,16,5,17],[8,3,11,9],[8,10,11,10],[8,11,11,14],[13,3,14,14],[102,3,102,12],[43,16,45,17],[49,3,61,14],[53,16,55,17],[82,3,83,14],[16,3,22,14],[17,16,20,17],[23,16,24,17],[24,3,24,14],[25,3,25,14],[27,3,38,14],[27,16,29,17],[85,3,85,14],[101,3,101,6],[101,7,101,14],[87,2,88,2],[87,3,88,6],[87,7,88,14],[89,2,90,2],[89,3,90,6],[89,7,90,14],[42,3,42,14],[43,3,47,14],[99,2,100,2],[99,3,100,6],[99,7,100,14],[91,2,94,2],[91,3,94,6],[91,7,94,14],[95,3,95,6],[95,7,95,14],[96,3,96,6],[96,7,96,14],[103,3,103,6],[103,7,103,14],[97,3,97,6],[97,7,97,14],[98,3,98,6],[98,7,98,14],[130,2,134,2],[130,3,134,6],[130,7,134,14],[135,2,136,2],[135,3,136,6],[135,7,136,14],[105,3,105,14],[107,3,108,14],[123,3,124,14],[126,3,126,14],[128,2,129,2],[128,3,129,6],[128,7,129,14],[141,2,142,2],[141,3,142,6],[141,7,142,14],[143,3,145,6],[143,7,145,14],[146,2,148,2],[146,3,148,6],[146,7,148,14],[137,2,138,2],[137,3,138,6],[137,7,138,14],[139,3,139,6],[139,7,139,14],[140,3,140,6],[140,7,140,14],[149,2,151,2],[149,3,151,6],[149,7,151,14],[171,3,172,14],[174,3,174,14],[176,2,178,2],[176,3,178,6],[176,7,178,12],[176,13,178,14],[183,2,184,2],[183,3,184,6],[183,7,184,12],[183,13,184,14],[185,2,188,2],[185,3,188,6],[185,7,188,12],[185,13,188,14],[176,16,178,17],[179,2,180,2],[179,3,180,6],[179,7,180,12],[179,13,180,14],[181,2,182,2],[181,3,182,6],[181,7,182,12],[181,13,182,14],[193,2,194,2],[193,3,194,6],[193,7,194,12],[193,13,194,14],[195,2,196,2],[195,3,196,6],[195,7,196,12],[195,13,196,14],[189,2,190,2],[189,3,190,6],[189,7,190,14],[191,2,192,2],[191,3,192,6],[191,7,192,14],[202,2,203,2],[202,3,203,6],[202,7,203,12],[202,13,203,14],[204,2,205,2],[204,3,205,6],[204,7,205,12],[204,13,205,14],[198,2,199,2],[198,3,198,14],[200,2,201,2],[200,3,201,6],[200,7,201,12],[200,13,201,14],[216,2,218,2],[216,3,218,6],[216,7,218,12],[216,13,218,14],[219,2,221,2],[219,3,221,6],[219,7,221,12],[219,13,221,14],[206,2,207,2],[206,3,207,6],[206,7,207,12],[206,13,207,14],[211,3,212,14],[214,3,214,14],[228,2,233,2],[228,3,233,6],[228,7,233,14],[231,16,233,17],[222,2,224,2],[222,3,224,6],[222,7,224,12],[222,13,224,14],[225,2,227,2],[225,3,227,6],[225,7,227,12],[225,13,227,14]]}
[]
[]
[null,null,null,"TENDER PACK 3\nOPERATING MARGINS\n2026/27 GAS DELIVERY TENDER (DEMAND REDUCTION)\nSHEET B - OPTIONAL 12 MONTH BID"]
[]
[]
[]
[]
[]
[null,null,null,"This tender pack is designed for:\n• Facility Providers of Demand Reduction Services\n",null,null,null,null,null,null,null,"Submission of this sheet is optional for Power Station Tenderers"]
[]
[]
[]
[]
[null,null,null,"Issued November 2025"]
[]
[]
[null,null,null,"Produced by National Grid Transmission  \nNational Grid Transmission plc\nWarwick Technology Park\nGallows Hill\nWarwick\nCV34 6DA"]
[]
[]
[]
[]
[]
[]
[]
[null,null,null,"Website:"]
[null,null,null,"https://www.nationalgas.com/our-businesses/operating-margins"]
[]
[null,null,null,"PLEASE NOTE:\nThis document should be read in conjunction with the template Operating Margins agreements (found on the Operating Margins Homepage) and the document entitled \"Tender Guidance Document 2026/27\".\n\nSpecific guidance on how to complete these tender sheets is provided in Sections 7 & 8 of the Operating Margins Tender Guidance Document with specific cross-references to these tender sheets via superscript numbers adjacent to the relevant fields of information. Please also refer to Section 6 \"Requirements of the Tender Process\" in order to understand what must accompany the tender sheets as part of submission in order that assessment can proceed on any tenders received.\n\nTerms and phrases used in this document have the meanings set out or referred to in the template Operating Margins agreements and/or the Operating Margins Tender Guidance Document."]
[]
[]
[]
[]
[]
[]
[]
[]
[]
[]
[]
[]
[]
[]
[null,null,null,"IMPORTANT INFORMATION - PLEASE READ:"]
[null,null,null,"• All parts of 'Sheet A' must be completed by all Power Station tenderers and submitted to be eligible for assessment.\n• A Power Station tenderer may submit an additional proposal for a 12 month OM service in the form of 'Sheet B', with a different Maximum Delivery Rate. This is optional. \n\n**Volumes in Sheets A and B  will be treated as mutually exclusive - i.e. National Gas will only consider accepting ONE of Sheet A or Sheet B.**"]
[]
[]
[]
[]
[]
[null,null,null,"Completed Tenders should be submitted by 13:00 hours (GMT) on Wednesday 7th January 2026 via Ariba.\n\nThe completed Tender Pack should be uploaded with a filename which includes the company name and site.\nAfter uploading the Tender Pack document, terms and conditions must be accepted before submitting.\nSubmissions can be revised until the deadline."]
[]
[]
[]
[]
[]
[]
[]
[]
[]
[]
[]
[]
[]
[]
[]
[]
[]
[]
[]
[]
[]
[]
[]
[]
[]
[]
[]
[]
[]
[]
[]
[]
[null,null,null,"2026/27 OM GAS DELIVERY TENDER (DEMAND REDUCTION)"]
[]
[]
[null,null,null,"Part 1: Tenderer Details"]
[]
[null,null,1,"Tenderer's Company Name\n(including company number)"]
[]
[null,null,2,"Company Representative, Job Title"]
[]
[null,null,3,"Company Representative Address\n(full address including postcode)"]
[]
[]
[]
[null,null,4,"Telephone Number"]
[]
[null,null,5,"Email Address"]
[null,null,6,"Legal Agent Name"]
[null,null,7,"Legal Agent Address"]
[]
[null,null,8,"Shipper Short Code"]
[null,null,9,"Please confirm that your organisation uses an accredited and industry-recognised digital security management system that manages cyber and information security risks across the full asset lifecycle, including design, architecture, development, testing, commissioning, and post-installation support.\n \nExamples of acceptable standards include (but are not limited to) the following:\n \n•\tISO/IEC 27001 certification\n•\tCyber Essentials / Cyber Essentials Plus (UK government-backed)\n•\tIEC 62443 (for industrial control systems)\n•\tAlignment with the NIST Cybersecurity Framework\n \nNotes:\nIf successful and following contract award notification, OM Service providers will be required to complete a security questionnaire, in order for National Gas to ensure audit compliance.  \n \nIf you fail to provide a response to this question, NGT reserves the right to discount you from the tender process.",null,null,null,null,null,null,null,null,null,"Click checkbox to confirm agreement and adherence ",false]
[null,null,10,"Achilles Registration Number"]
[]
[null,null,null,"Part 2"]
[]
[null,null,null,"[See OM Tenderers Contract Response Form if such amendments are proposed]\nIf no amendments are proposed please go to Part 3"]
[]
[]
[]
[]
[]
[]
[]
[]
[]
[]
[]
[]
[]
[]
[]
[null,null,null,"2026/27 OM GAS DELIVERY TENDER (DEMAND REDUCTION)"]
[]
[]
[null,null,null,"Part 3: Facility Details"]
[]
[null,null,11,"Tenderer's Company Name\n(Including registered office address and company number)"]
[]
[null,null,12,"Facility Location\n(full address including postcode)\n"]
[]
[]
[]
[]
[null,null,13,"Facility Stable Export Limit (SEL)"]
[]
[null,null,14,"Facility Maximum Export Limit (MEL)"]
[]
[null,null,15,"Gas Demand (kWh/hour) at SEL"]
[null,null,16,"Gas Demand (kWh/hour) at MEL"]
[null,null,17,"BM Unit IDs"]
[]
[null,null,null,"Duration of Service",null,null,null,"12 Months (01/05/2026 - 30/04/2027)"]
[null,null,18]
[]
[null,null,19,"Service Provider contact details for operational notices \nEmployee Position / role, Address, Telephone numbers and email details.",null,null,null,null,null,null,null,null,null,null,null,null,1]
[]
[]
[]
[]
[]
[]
[]
[]
[]
[]
[]
[]
[]
[]
[]
[]
[]
[]
[]
[]
[]
[]
[]
[]
[null,null,null,"2026/27 OM GAS DELIVERY TENDER (DEMAND REDUCTION)"]
[]
[]
[null,null,null,"Part 4: Deliverability & Availability"]
[]
[null,null,20,"Maximum Delivery Rate (Tendered)\n(requirement must be greater or equal to 500,000 kWh/hour)",null,null,null,null,null,null,null,null,null,"kWh/hour"]
[]
[]
[]
[]
[null,null,21,"Minimum Delivery Rate\n(optional) (if left blank delivery deemed at 0)",null,null,null,null,null,null,null,null,null,"kWh/hour"]
[]
[null,null,22,"Response Time",null,null,null,null,null,null,null,null,null,"Minutes"]
[]
[null,null,23,"Planned Maintenance Periods",null,null,null,null,null,null,null,null,null,"Dates"]
[]
[]
[]
[null,null,24,"Website for Service Availability / Unavailability"]
[]
[]
[]
[null,null,25,"Maximum Delivery Duration",null,null,null,null,null,null,null,null,null,"hours",null,null,1]
[]
[null,null,26,"Minimum Delivery Duration\n(Optional) (if left blank delivery deemed at 0)",null,null,null,null,null,null,null,null,null,"hours"]
[]
[]
[]
[]
[]
[]
[]
[]
[]
[]
[]
[]
[]
[]
[]
[null,null,null,"2026/27 OM GAS DELIVERY TENDER (DEMAND REDUCTION)"]
[]
[]
[null,null,null,"Part 5: Charges"]
[]
[null,null,27,"Annual Service Fee",null,null,null,null,null,null,null,null,null,"£"]
[]
[]
[null,null,28,"Indexed Delivery Charge\n",null,null,null,"Indexed Delivery Charge 2",null,null,null,null,null,"See Guidance Document"]
[]
[]
[null,null,29,"Efficiency Loss Factor ('X'%)",null,null,null,null,null,null,null,null,null,"See Guidance Document"]
[]
[]
[null,null,30,"Indexed Delivery Charge 3 required? (YES/NO)\n",null,null,null,null,null,null,null,null,null,"See Guidance Document"]
[]
[]
[null,null,31,"Additional Nomination Restrictions"]

{"sheet":"DC3B","index":3,"n_rows":4,"n_cols":41,"rows_kept":4,"cut":false,"hidden":true,"merged":[[0,2,1,9]]}
[null,null,"Data Collection Tab for Contracts Team"]
[]
["Tender Pack","Tender Ref","Tranche Ref","Main Ref",{"$f":"#REF!","v":{"$error":"#REF!"}},{"$f":"#REF!","v":{"$error":"#REF!"}},{"$f":"#REF!","v":{"$error":"#REF!"}},{"$f":"#REF!","v":{"$error":"#REF!"}},{"$f":"#REF!","v":{"$error":"#REF!"}},{"$f":"#REF!","v":{"$error":"#REF!"}},{"$f":"#REF!","v":{"$error":"#REF!"}},{"$f":"#REF!","v":{"$error":"#REF!"}},{"$f":"#REF!","v":{"$error":"#REF!"}},{"$f":"#REF!","v":{"$error":"#REF!"}},"Winter Only?",{"$f":"#REF!","v":{"$error":"#REF!"}},{"$f":"#REF!","v":{"$error":"#REF!"}},{"$f":"#REF!","v":{"$error":"#REF!"}},{"$f":"#REF!","v":{"$error":"#REF!"}},{"$f":"#REF!","v":{"$error":"#REF!"}},{"$f":"#REF!","v":{"$error":"#REF!"}},{"$f":"#REF!","v":{"$error":"#REF!"}},{"$f":"#REF!","v":{"$error":"#REF!"}},{"$f":"#REF!","v":{"$error":"#REF!"}},{"$f":"#REF!","v":{"$error":"#REF!"}},{"$f":"#REF!","v":{"$error":"#REF!"}},{"$f":"#REF!","v":{"$error":"#REF!"}},{"$f":"#REF!","v":{"$error":"#REF!"}},{"$f":"#REF!","v":{"$error":"#REF!"}},{"$f":"#REF!","v":{"$error":"#REF!"}},{"$f":"#REF!","v":{"$error":"#REF!"}},{"$f":"#REF!","v":{"$error":"#REF!"}},{"$f":"#REF!","v":{"$error":"#REF!"}},{"$f":"#REF!","v":{"$error":"#REF!"}},{"$f":"#REF!","v":{"$error":"#REF!"}},{"$f":"#REF!","v":{"$error":"#REF!"}},{"$f":"#REF!","v":{"$error":"#REF!"}},{"$f":"#REF!","v":{"$error":"#REF!"}},{"$f":"#REF!","v":{"$error":"#REF!"}},{"$f":"#REF!","v":{"$error":"#REF!"}},{"$f":"#REF!","v":{"$error":"#REF!"}}]
[null,null,null,{"$f":"A4&\".\"&B4&\".\"&C4","v":".."},{"$f":"#REF!","v":{"$error":"#REF!"}},{"$f":"#REF!","v":{"$error":"#REF!"}},{"$f":"#REF!","v":{"$error":"#REF!"}},{"$f":"#REF!","v":{"$error":"#REF!"}},{"$f":"#REF!","v":{"$error":"#REF!"}},{"$f":"#REF!","v":{"$error":"#REF!"}},{"$f":"#REF!","v":{"$error":"#REF!"}},{"$f":"#REF!","v":{"$error":"#REF!"}},{"$f":"#REF!","v":{"$error":"#REF!"}},{"$f":"#REF!","v":{"$error":"#REF!"}},"No",{"$f":"#REF!","v":{"$error":"#REF!"}},{"$f":"#REF!","v":{"$error":"#REF!"}},{"$f":"#REF!","v":{"$error":"#REF!"}},{"$f":"#REF!","v":{"$error":"#REF!"}},{"$f":"#REF!","v":{"$error":"#REF!"}},{"$f":"#REF!","v":{"$error":"#REF!"}},{"$f":"#REF!","v":{"$error":"#REF!"}},{"$f":"#REF!","v":{"$error":"#REF!"}},{"$f":"#REF!","v":{"$error":"#REF!"}},{"$f":"#REF!","v":{"$error":"#REF!"}},{"$f":"#REF!","v":{"$error":"#REF!"}},{"$f":"#REF!","v":{"$error":"#REF!"}},{"$f":"#REF!","v":{"$error":"#REF!"}},{"$f":"#REF!","v":{"$error":"#REF!"}},{"$f":"IF(#REF!=1,\"12\",IF(#REF!=2,\"24\",\"UNCHECKED\"))","v":{"$error":"#REF!"}},{"$f":"#REF!","v":{"$error":"#REF!"}},{"$f":"#REF!","v":{"$error":"#REF!"}},{"$f":"#REF!","v":{"$error":"#REF!"}},{"$f":"#REF!","v":{"$error":"#REF!"}},{"$f":"#REF!","v":{"$error":"#REF!"}},{"$f":"#REF!","v":{"$error":"#REF!"}},{"$f":"#REF!","v":{"$error":"#REF!"}},{"$f":"#REF!","v":{"$error":"#REF!"}},{"$f":"#REF!","v":{"$error":"#REF!"}},{"$f":"#REF!","v":{"$error":"#REF!"}},{"$f":"IF(#REF!=\"\",\"N\",\"Y\")","v":{"$error":"#REF!"}}]

{"sheet":"DC3C","index":4,"n_rows":4,"n_cols":41,"rows_kept":4,"cut":false,"hidden":true,"merged":[[0,2,1,9]]}
[null,null,"Data Collection Tab for Contracts Team"]
[]
["Tender Pack","Tender Ref","Tranche Ref","Main Ref",{"$f":"#REF!","v":{"$error":"#REF!"}},{"$f":"#REF!","v":{"$error":"#REF!"}},{"$f":"#REF!","v":{"$error":"#REF!"}},{"$f":"#REF!","v":{"$error":"#REF!"}},{"$f":"#REF!","v":{"$error":"#REF!"}},{"$f":"#REF!","v":{"$error":"#REF!"}},{"$f":"#REF!","v":{"$error":"#REF!"}},{"$f":"#REF!","v":{"$error":"#REF!"}},{"$f":"#REF!","v":{"$error":"#REF!"}},{"$f":"#REF!","v":{"$error":"#REF!"}},"Winter Only?",{"$f":"#REF!","v":{"$error":"#REF!"}},{"$f":"#REF!","v":{"$error":"#REF!"}},{"$f":"#REF!","v":{"$error":"#REF!"}},{"$f":"#REF!","v":{"$error":"#REF!"}},{"$f":"#REF!","v":{"$error":"#REF!"}},{"$f":"#REF!","v":{"$error":"#REF!"}},{"$f":"#REF!","v":{"$error":"#REF!"}},{"$f":"#REF!","v":{"$error":"#REF!"}},{"$f":"#REF!","v":{"$error":"#REF!"}},{"$f":"#REF!","v":{"$error":"#REF!"}},{"$f":"#REF!","v":{"$error":"#REF!"}},{"$f":"#REF!","v":{"$error":"#REF!"}},{"$f":"#REF!","v":{"$error":"#REF!"}},{"$f":"#REF!","v":{"$error":"#REF!"}},{"$f":"#REF!","v":{"$error":"#REF!"}},{"$f":"#REF!","v":{"$error":"#REF!"}},{"$f":"#REF!","v":{"$error":"#REF!"}},{"$f":"#REF!","v":{"$error":"#REF!"}},{"$f":"#REF!","v":{"$error":"#REF!"}},{"$f":"#REF!","v":{"$error":"#REF!"}},{"$f":"#REF!","v":{"$error":"#REF!"}},{"$f":"#REF!","v":{"$error":"#REF!"}},{"$f":"#REF!","v":{"$error":"#REF!"}},{"$f":"#REF!","v":{"$error":"#REF!"}},{"$f":"#REF!","v":{"$error":"#REF!"}},{"$f":"#REF!","v":{"$error":"#REF!"}}]
[null,null,null,{"$f":"A4&\".\"&B4&\".\"&C4","v":".."},{"$f":"#REF!","v":{"$error":"#REF!"}},{"$f":"#REF!","v":{"$error":"#REF!"}},{"$f":"#REF!","v":{"$error":"#REF!"}},{"$f":"#REF!","v":{"$error":"#REF!"}},{"$f":"#REF!","v":{"$error":"#REF!"}},{"$f":"#REF!","v":{"$error":"#REF!"}},{"$f":"#REF!","v":{"$error":"#REF!"}},{"$f":"#REF!","v":{"$error":"#REF!"}},{"$f":"#REF!","v":{"$error":"#REF!"}},{"$f":"#REF!","v":{"$error":"#REF!"}},"Yes",{"$f":"#REF!","v":{"$error":"#REF!"}},{"$f":"#REF!","v":{"$error":"#REF!"}},{"$f":"#REF!","v":{"$error":"#REF!"}},{"$f":"#REF!","v":{"$error":"#REF!"}},{"$f":"#REF!","v":{"$error":"#REF!"}},{"$f":"#REF!","v":{"$error":"#REF!"}},{"$f":"#REF!","v":{"$error":"#REF!"}},{"$f":"#REF!","v":{"$error":"#REF!"}},{"$f":"#REF!","v":{"$error":"#REF!"}},{"$f":"#REF!","v":{"$error":"#REF!"}},{"$f":"#REF!","v":{"$error":"#REF!"}},{"$f":"#REF!","v":{"$error":"#REF!"}},{"$f":"#REF!","v":{"$error":"#REF!"}},{"$f":"#REF!","v":{"$error":"#REF!"}},{"$f":"IF(#REF!=1,\"12\",IF(#REF!=2,\"24\",\"UNCHECKED\"))","v":{"$error":"#REF!"}},{"$f":"#REF!","v":{"$error":"#REF!"}},{"$f":"#REF!","v":{"$error":"#REF!"}},{"$f":"#REF!","v":{"$error":"#REF!"}},{"$f":"#REF!","v":{"$error":"#REF!"}},{"$f":"#REF!","v":{"$error":"#REF!"}},{"$f":"#REF!","v":{"$error":"#REF!"}},{"$f":"#REF!","v":{"$error":"#REF!"}},{"$f":"#REF!","v":{"$error":"#REF!"}},{"$f":"#REF!","v":{"$error":"#REF!"}},{"$f":"#REF!","v":{"$error":"#REF!"}},{"$f":"IF(#REF!=\"\",\"N\",\"Y\")","v":{"$error":"#REF!"}}]